Cogmind - Beta 13 @@@ ROGUE MODE // 2024.04.19 @ 19:56:24 Player: Sacrath Result: Destroyed by as-34962 with Assembled Maul Performance ------------- Evolutions (1) 500 Regions Visited (4) 800 Robots Destroyed (39) 195 Value Destroyed (835) 835 Prototype IDs (7) 140 Alien Tech Used (0) 0 Bonus (-18) -18 TOTAL SCORE: 2452 Bonus ------- High Alert Combat Kills 2 Friendly Fire -20 Cogmind --------- Core Integrity 0/400 Matter 144/300 Energy 100/100 System Corruption 1% Temperature Cool (0) Movement Core (50) Location -9/Mines Parts ------- > --- POWER (2) -------- (None) > --- PROPULSION (2) --- (None) > --- UTILITY (3) ------ (None) > --- WEAPON (2) ------- (None) > --- INVENTORY (5) ---- Flight Unit Improved Heat Sink Recoil Stabilizer Sensor Drone Bay (9/20) Mining Laser Peak State ------------ > --- POWER ------------ Ion Engine Ion Engine > --- PROPULSION ------- Carbon-fiber Leg Titanium Leg > --- UTILITY ---------- Improved Heat Sink Improved Weapon Shielding Sensor Drone Bay > --- WEAPON ----------- Heavy Particle Gun Heavy Particle Gun > --- INVENTORY -------- High-capacity Battery Trap Scanner Melee Analysis Suite Recoil Stabilizer Mini Grenade Launcher [Rating: 31] Favorites ----------- Power Ion Engine Engine Ion Engine Propulsion Aluminum Leg Leg Aluminum Leg Flight Unit Improved Flight Unit Utility Improved Heat Sink Device Improved Heat Sink Hackware Hacking Suite Protection Improved Weapon Shielding Weapon Heavy Particle Gun Energy Gun Heavy Particle Gun Energy Cannon Light EM Pulse Cannon Ballistic Gun Assault Rifle Launcher Mini Grenade Launcher Build | -11 -10 -10 -9 -9 ------- Run | Yrd Mat Min Mat Min Slots Evolved 2 | . . . 2 . Power 1 | . . . 1 . Propulsion . | . . . . . Utility 1 | . . . 1 . Weapon . | . . . . . Parts Attached 27 | 4 3 5 10 5 Power 5 | . . 2 1 2 Engine 5 | . . 2 1 2 Core . | . . . . . Reactor . | . . . . . Propulsion 6 | 2 . 1 3 . Treads . | . . . . . Leg 4 | 2 . 1 1 . Wheel . | . . . . . Hover . | . . . . . Flight 2 | . . . 2 . Utility 7 | . 1 1 3 2 Device 5 | . 1 1 1 2 Storage . | . . . . . Processor . | . . . . . Hackware 1 | . . . 1 . Protection 1 | . . . 1 . Artifact . | . . . . . Weapon 9 | 2 2 1 3 1 Energy Gun 3 | . . 1 2 . Energy Cannon 1 | . 1 . . . Ballistic Gun 2 | 2 . . . . Ballistic Cannon . | . . . . . Launcher 3 | . 1 . 1 1 Special Weapon . | . . . . . Impact Weapon . | . . . . . Slashing Weapon . | . . . . . Piercing Weapon . | . . . . . Special Melee Weapon . | . . . . . Unidentified Prototypes 3 | . . 1 2 . Parts Lost 9 | . . 3 1 5 Power 2 | . . 1 . 1 Propulsion 3 | . . 1 . 2 Utility 2 | . . . 1 1 Weapon 2 | . . 1 . 1 Highest Loss Streak 5 | . . 2 1 5 To Critical Strikes 1 | . . 1 . . Average Slot Usage (%) 77 | . 66 73 89 61 Engine 10 | . . 6 17 10 Leg 20 | . 28 23 18 . Flight 3 | . . . 3 22 Device 17 | . 10 19 20 8 Hackware 1 | . . . 1 11 Protection 3 | . . . 9 . Energy Gun 7 | . . 1 18 . Energy Cannon 4 | . 12 7 . . Launcher 8 | . 12 14 . 9 Naked Turns 1 | . . . . 1 Heaviest Build 33 | 4 6 24 33 10 Greatest Support 32 | 20 20 27 32 10 Greatest Overweight (x) 6 | . . 1 6 . Average Overweight (x) . | . . . . . Largest Inventory Capacity 5 | 5 5 5 5 5 Average Capacity 5 | 5 5 5 5 5 Most Carried 5 | 1 1 5 5 5 Average Carried 2 | . . 1 4 4 Final Capacity 5 | 5 5 5 5 5 Final Carried 5 | . 1 5 4 5 Class Distribution -------------------- 85% | Mutant 14% | Scavenger-Mutant Dominant Class ---------------- Mutant | -10/Materials Mutant | -10/Mines Mutant | -9/Materials Mutant | -9/Mines Resources | -11 -10 -10 -9 -9 ----------- Run | Yrd Mat Min Mat Min Matter Collected 619 | 179 114 132 130 64 Remotely . | . . . . . Salvage Created 823 | . 121 151 450 101 Parts 69 | . 5 15 28 21 Haulers Intercepted 2 | . 1 . 1 . Recyclers Shooed . | . . . . . Parts Field Recycled . | . . . . . Retrieved Matter . | . . . . . Parts Self-Destructed . | . . . . . Prevented . | . . . . . Kills | -11 -10 -10 -9 -9 ------- Run | Yrd Mat Min Mat Min Combat Hostiles Destroyed 32 | . 2 8 9 13 Guns 9 | . . . 9 . Cannons 4 | . 1 3 . . AOE 19 | . 1 5 . 13 Classes Destroyed 10 | . 3 2 3 2 Worker 1 | . . . . 1 Builder 1 | . . . . 1 Tunneler 1 | . . 1 . . Hauler 2 | . 1 . 1 . Operator 1 | . . . 1 . Watcher 1 | . 1 . . . Swarmer 17 | . . 6 . 11 Grunt 13 | . 2 2 7 2 Duelist 1 | . . . 1 . Sentry 1 | . . . 1 . Best Kill Streak 6 | . 2 4 4 6 Combat Bots Only 6 | . 2 3 4 6 Max Kills in Single Turn 3 | . 1 2 1 3 Gunslinging . | . . . . . Exploded 3 | . 1 2 . 3 Melee . | . . . . . Uniques/NPCs Destroyed . | . . . . . Combat | -11 -10 -10 -9 -9 -------- Run | Yrd Mat Min Mat Min Hostile Shots Fired 126 | . 2 30 35 59 Missed 34 | . 1 6 7 20 Damage Taken 1274 | . 10 311 380 573 Core 523 | . 10 112 91 310 Absorbed by Shields . | . . . . . Redirected to Shielding 45 | . . . 45 . Core Remaining (%) 75 | 100 . 51 . . Volleys Fired 74 | . 12 21 25 16 Largest 2 | . 1 1 2 1 Hottest 110 | . 56 56 110 33 Shots Fired 99 | . 12 21 50 16 Gun 50 | . . . 50 . Cannon 22 | . 7 15 . . Launcher 27 | . 5 6 . 16 Special . | . . . . . Kinetic . | . . . . . Thermal 50 | . . . 50 . Explosive 27 | . 5 6 . 16 Electromagnetic 22 | . 7 15 . . Robot Hit Streak 6 | . 4 6 6 3 Robot Miss Streak 6 | . 1 3 6 3 Penetration Max . | . . . . . Secondary Targets 2 | . . . 2 . Max Gunslinging Chain 1 | . . . 1 . Shots Hit Robots 60 | . 10 12 31 7 Core Hits 47 | . 6 11 12 18 Critical Kills . | . . . . . Critical Parts Destroyed . | . . . . . Critical Strikes 1 | . . . 1 . Burn 1 | . . . 1 . Melee Attacks . | . . . . . Impact . | . . . . . Slashing . | . . . . . Piercing . | . . . . . Sneak Attacks . | . . . . . Combat Hostiles . | . . . . . Follow-up Attacks . | . . . . . Damage Inflicted 2679 | . 362 616 585 1116 Guns 585 | . . . 585 . Cannons 395 | . 147 248 . . Explosions 1699 | . 215 368 . 1116 Melee . | . . . . . Ramming . | . . . . . Kinetic . | . . . . . Thermal 668 | . . 83 585 . Explosive 1616 | . 215 285 . 1116 Electromagnetic 395 | . 147 248 . . Impact . | . . . . . Slashing . | . . . . . Piercing . | . . . . . Highest Corruption 1 | . . . 1 1 Average Corruption 1 | . . . 1 1 Corruption Purged . | . . . . . Corruption Blocked . | . . . . . Overload Shots . | . . . . . Overflow Damage 142 | . . 21 . 121 Projectiles . | . . . . . Explosions 142 | . . 21 . 121 Melee . | . . . . . Knockbacks . | . . . . . Impact . | . . . . . Kinetic . | . . . . . Secondary . | . . . . . Self-Inflicted Damage 161 | . . 62 . 99 Shots 5 | . . 2 . 3 Rammed . | . . . . . Targets Rammed . | . . . . . Kicked . | . . . . . Crushed . | . . . . . Highest Temperature 474 | . 6 3 474 34 Average Temperature 122 | . 4 2 134 19 Received Heat Transfer 381 | . 6 57 174 144 Effects 4 | . . . 4 . Shutdowns 2 | . . . 2 . Interference 1 | . . . 1 . Matter Decay 1 | . . . 1 . Siege Activations . | . . . . . Robots Corrupted . | . . . . . Combat Hostiles . | . . . . . Parts Fried 4 | . 3 1 . . Impact Corruptions . | . . . . . Robots Melted . | . . . . . Combat Hostiles . | . . . . . Parts Melted 4 | . . 1 3 . Heat Transferred 1371 | . . 150 1221 . Parts Sabotaged . | . . . . . Parts Stolen . | . . . . . Parts Stripped . | . . . . . Power Chain Reactions 1 | . . 1 . . Alert | -11 -10 -10 -9 -9 ------- Run | Yrd Mat Min Mat Min Peak Influence 406 | . 158 204 227 406 Initial 61 | . . 61 37 12 Average 113 | . 106 132 67 274 Maximum Alert Level 2 | . . 1 1 2 Low Security (%) 91 | 100 100 91 98 37 Level 1 6 | . . 8 1 38 Level 2 2 | . . . . 23 Level 3 . | . . . . . Level 4 . | . . . . . Level 5 . | . . . . . High Security . | . . . . . Max Security . | . . . . . Squads Dispatched 3 | . . 1 2 . Investigation 2 | . . 1 1 . Extermination . | . . . . . Reinforcement 1 | . . . 1 . Assault . | . . . . . Garrison . | . . . . . Intercept . | . . . . . Searches Triggered . | . . . . . Construction Impeded . | . . . . . Haulers Reinforced . | . . . . . Active Scanning Responses . | . . . . . Cargo Convoy Interrupts . | . . . . . Stealth | -11 -10 -10 -9 -9 --------- Run | Yrd Mat Min Mat Min Distress Signals 3 | . . . 3 . Communications Jammed . | . . . . . Distress Signals . | . . . . . Times Spotted 64 | . 3 8 14 39 Peak Tracking Total 22 | . 2 3 3 22 Tactical Retreats 2 | . . . 1 1 Traps | -11 -10 -10 -9 -9 ------- Run | Yrd Mat Min Mat Min Traps Triggered . | . . . . . Indirectly . | . . . . . Trap Hack Attempts . | . . . . . Triggered . | . . . . . Disarmed . | . . . . . Reprogrammed . | . . . . . Reused . | . . . . . Traps Extracted . | . . . . . Installed . | . . . . . Triggered . | . . . . . Machines | -11 -10 -10 -9 -9 ---------- Run | Yrd Mat Min Mat Min Machines Disabled 3 | . 1 1 . 1 Max in Single Turn 1 | . 1 1 . 1 Machines Repaired . | . . . . . Machines Dismantled . | . . . . . Machines Sabotaged . | . . . . . Overloaded Fab Kills . | . . . . . Hacking | -11 -10 -10 -9 -9 --------- Run | Yrd Mat Min Mat Min Machines Accessed 6 | . 1 2 3 . Terminals 4 | . 1 . 3 . Fabricators . | . . . . . Repair Stations . | . . . . . Recycling Units . | . . . . . Scanalyzers . | . . . . . Garrison Access . | . . . . . Total Hacks 16 | . 4 2 10 . Successful 11 | . 2 2 7 . Failed 5 | . 2 . 3 . Catastrophic . | . . . . . Database Lockouts . | . . . . . Manual 5 | . 1 . 4 . Terminals 14 | . 4 . 10 . Fabricators . | . . . . . Repair Stations . | . . . . . Recycling Units . | . . . . . Scanalyzers . | . . . . . Garrison Access . | . . . . . Terminal Hacks 8 | . 1 2 5 . Prototype ID Bank 2 | . 1 . 1 . Open Door 2 | . . 2 . . Alert Level 2 | . . . 2 . Unreport Threat 1 | . . . 1 . Recall Investigation 1 | . . . 1 . Fabricator Hacks . | . . . . . Repair Station Hacks . | . . . . . Recycling Unit Hacks . | . . . . . Scanalyzer . | . . . . . Garrison Access Hacks . | . . . . . Unauthorized Hacks 3 | . 1 . 2 . Terminals 3 | . 1 . 2 . Assimilate 1 | . . . 1 . Botnet 2 | . 1 . 1 . Fabricators . | . . . . . Repair Stations . | . . . . . Recycling Units . | . . . . . Scanalyzers . | . . . . . Garrison Access . | . . . . . Data Cores Recovered . | . . . . . Used . | . . . . . Hacking Detections 4 | . 1 . 3 . Full Trace Events 2 | . . . 2 . Feedback Events 1 | . . . 1 . Corruption 1 | . . . 1 . Feedback Blocked . | . . . . . Robot Schematics Acquired . | . . . . . Robots Built . | . . . . . Authchips . | . . . . . Time . | . . . . . Total Robot Build Rating . | . . . . . Part Schematics Acquired . | . . . . . Parts Built . | . . . . . Authchips . | . . . . . Time . | . . . . . Total Part Build Rating . | . . . . . Parts Repaired . | . . . . . Time . | . . . . . Parts Recycled . | . . . . . Recycled Matter . | . . . . . Retrieved Matter . | . . . . . Retrieved Components . | . . . . . Parts Scanalyzed . | . . . . . Part Schematics Acquired . | . . . . . Parts Damaged . | . . . . . Bothacking | -11 -10 -10 -9 -9 ------------ Run | Yrd Mat Min Mat Min Used RIF Installer . | . . . . . Robots Hacked . | . . . . . Non-combat . | . . . . . Combat . | . . . . . Robot Hacks Applied . | . . . . . Relay Couplers Released . | . . . . . Fabnet Peak Effective % . | . . . . . Robots Rewired . | . . . . . Allies Hacked . | . . . . . Hacks Repelled . | . . . . . Allies | -11 -10 -10 -9 -9 -------- Run | Yrd Mat Min Mat Min Total Allies 1 | . . . 1 . Largest Group 1 | . . . 1 1 Highest-Rated Group 10 | . . . 10 10 Highest-Rated Ally 10 | . . . 10 10 Total Orders 6 | . . 2 2 2 EXPLORE 5 | . . 1 2 2 RETURN 1 | . . 1 . . Ally Attacks . | . . . . . Total Damage . | . . . . . Kills . | . . . . . Allies Corrupted . | . . . . . Allies Melted . | . . . . . Intel | -11 -10 -10 -9 -9 ------- Run | Yrd Mat Min Mat Min Robot Analysis Total . | . . . . . Derelict Logs Recovered 2 | . . 1 . 1 Drone Launches 25 | . . 3 13 9 Drone Recoveries 14 | . . 3 5 6 Exploration | -11 -10 -10 -9 -9 ------------- Run | Yrd Mat Min Mat Min Turns Passed 2178 | 41 355 760 832 190 Spaces Moved 1316 | 31 230 406 410 239 Core 5 | 5 . . . . Treads . | . . . . . Legs 902 | 26 230 406 240 . Wheels . | . . . . . Hover . | . . . . . Flight 409 | . . . 170 239 Fastest Speed 37 | 50 120 120 37 37 Average Speed 110 | 108 120 128 129 37 Slowest Speed 460 | 120 120 190 460 37 Overloaded Moves . | . . . . . Propulsion Burnouts . | . . . . . Robots Hopped 10 | . . . 2 8 Cave-ins Triggered . | . . . . . Exploration Rate (%) 53 | 3 38 100 42 83 Regions Visited 4 Branch Regions 2 Pre-discovered Areas 1 | . . . . 1 Known Exits Taken 1 | . . 1 . . Unknown Exits Taken 3 | 1 1 . 1 . Scrap Searched 2 | . . 1 . 1 Spaces Dug . | . . . . . Terrain Destroyed 214 | . 55 61 . 98 Melee . | . . . . . Projectile . | . . . . . AOE 214 | . 55 61 . 98 Terrain Rammed . | . . . . . Walls Destroyed . | . . . . . Machines Disabled . | . . . . . Actions | -11 -10 -10 -9 -9 --------- Run | Yrd Mat Min Mat Min Total 1941 | 38 298 625 662 318 Wait 490 | . 48 182 201 59 Move 1296 | 30 229 405 405 227 Hop 6 | . . . 2 4 Pick Up 25 | 4 4 10 6 1 Fast Attach 8 | . . 1 4 3 Attach 18 | 4 3 4 5 2 Detach 3 | . . . 1 2 Swap 1 | . . . 1 . Drop 20 | . 2 2 12 4 Fire 74 | . 12 21 25 16 Melee . | . . . . . Ram . | . . . . . Kick . | . . . . . Crush . | . . . . . Escape Stasis . | . . . . . Rewire . | . . . . . Trap . | . . . . . Miscellaneous . | . . . . . Route ------- -11/Scrapyard -10/Materials -10/Mines (discovered 3 exits: *Mat x2 / [*Sub]) -9/Materials (discovered 2 exits: Mat / [*Min]) -9/Mines (discovered 2 exits: *Mat / [*Zio]) History --------- Turn | Location | Event 20 | -11/Scrapyard | Discovered new exit (range 15) 42 | -11/Scrapyard | Entered Materials 143 | -10/Materials | Discovered new exit (range 16) 303 | -10/Materials | Build established: Mutant 397 | -10/Materials | Entered Mines 438 | -10/Mines | Learned location of 1 exit from Materials 855 | -10/Mines | Found the Drone Emporium 860 | -10/Mines | Found Prototype Device 861 | -10/Mines | Identified Sensor Drone Bay 918 | -10/Mines | Discovered new exit (range 36) 968 | -10/Mines | Discovered new exit (range 38) 970 | -10/Mines | Identified exit to Materials 1054 | -10/Mines | Met a Derelict shopkeep closing up shop 1077 | -10/Mines | Discovered new exit (range 72) 1157 | -10/Mines | Entered Materials 1157 | -9/Materials | Evolved 2 slots: Power x1, Utility x1 1158 | -9/Materials | Identified exit to Materials 1857 | -9/Materials | Build established: Scavenger-Mutant 1893 | -9/Materials | Discovered new exit (range 18) 1989 | -9/Materials | Entered Mines 1989 | -9/Mines | Accompanied by 1 ally 2034 | -9/Mines | Learned location of Storage (-8) 2079 | -9/Mines | Received a Rocket Launcher from a helpful Derelict 2089 | -9/Mines | Discovered exit to Materials (range 14) 2094 | -9/Mines | A Derelict revealed a hidden shortcut to a safe place 2138 | -9/Mines | Learned location of 1 exit from Lower Caves 2143 | -9/Mines | Found a hidden stash of uninstalled traps 2161 | -9/Mines | Assembled infested the area 2168 | -9/Mines | Build established: Mutant 2169 | -9/Mines | Core integrity fell below 50% 2175 | -9/Mines | Core integrity fell below 20% 2179 | -9/Mines | Destroyed by as-34962 with Assembled Maul Last Messages --------------- U-05 Engineer lays Concrete. K-01 Serf collects debris. Acquired derelict log, extracted data. Data stored: Lower Caves exits (x1). A stash of uninstalled traps is collected here! K-01 Serf collects debris. ALERT: Infestation in the mines, dispatching Demolisher response squad. S-10 Pest destroyed. Ion Engine destroyed. Destroyed Ion Engine. Rocket Launcher destroyed. Destroyed Rocket Launcher. S-10 Pest destroyed. Acquired 19 matter. Critical hit (Burn: +80). Knocked back. Imp. Flight Unit destroyed. Hacking Suite destroyed. [Achievement: Back For More] Map ----- +----------------------------------------------------+ | ????????????????????????# | | ????????????????###?????### # | | ???????????????## #??????## | | ??????????????? #????## | | ????????????????"" ##?## | | ????????????????"" ## | | ????????????? """ | | ????????????# | | ????????????????# | | ????????????????# ## | | ???????????????????# | | ????????????? # # | | ?????????????####### ## ## | | ???????????????????# ####?# | | ???????????????????# #????# | | ???????????????????# #????# | | ????????????????#### ##???# | | ????????????????# # ##??# | | ??????????###?### ##?## | | ?????????## ## ##?# | | ?????????# ## ## ### | | ?????????# ### | | ?????????# ### """ | | ?????????# ### """ | | ???####??## ## """ | | ??##@ ##??# ## | | ??#aa #??# %= ### # | | ??#aa #??#= == ##?## # | | ??##aaa#####=%[ ##???### # | | ???# aa ##??????# # | | ???#< aaa #???????# # | | ???# a ##### #???????# | | ???## ##???# #???????## | | ????#####???? ##????????# | | ???????????? ##?????????# | | ???????????? #??????????# | | ???????????# #??????????# | | ???????????## ##??????????# | | ????????????####???????????# | | ???????????????????????????# | | ???????????????????????????# | | ??????????????????????????## | | ?????????????????????????## & | | ?????????????????????????# & | | ?????????????????????????# & | | ????????????????????????# | | ????????????????????????# | | ????????????????????????# | | ????????????????????????##### | | ????????????????????????????? | +----------------------------------------------------+ Best States ------------- Heat Dissipation 42 Energy Generation 15 Energy Capacity 400 Matter Stores 300 Matter Capacity 300 Sight Range 16 Terrain Scan Density 10 Weapon Shielding 66 Evasion (%) 62 Offensive Hacking 10 Item Schematics ----------------- None Robot Schematics ------------------ None Fabricated ------------ Nothing Alien Tech Used ----------------- None Achievements -------------- Back For More Challenges ------------ None Game ------ Seed FrostGlidesysShifter Manual? 0 Play Time 00:21:04 Cumulative 35.6 hours Start 2024.04.19 @ 19:35:48 End 2024.04.19 @ 19:56:24 Sessions 1 Manual Loads 0 Difficulty Rogue Special Mode None Game No. 51 Rogue 2 Adventurer 49 Explorer 0 Win Type - Total 2 Types 2/0/0/0/0/0/0/0/0 Lore% 24 Gallery% 45 Achievement% 37 Wizard Run 0 Options --------- Layout 1 ASCII 0 Keyboard 0 Movement Mouse Keybinds 0 Fullscreen 1 Font 24/Smallcaps Map View 50x35 Zoom Use 0% Tactical HUD 0 Map Filters NONE Filters NONE Steam 1 RUN: c39d5632-257a-40de-b565-eb910dbe538d